lending/lending_fUSD_20250131
["ID","MTS","AMOUNT","RATE_DAILY","PERIOD"]
[351036213,1738303845803,-1534.7,0.00019178,2]
[351036214,1738303845813,-500.0,0.00019178,2]
[351036215,1738303845824,-669.07,0.00019178,2]
[351036216,1738303845834,-500.0,0.00019178,2]
[351036217,1738303845844,-2898.5,0.00019178,2]
[351036218,1738303845855,-4420.01,0.00019178,2]
[351036219,1738303845865,-724.46,0.00019178,2]
[351036220,1738303845875,-1516.41,0.00019178,2]
[351036222,1738303845886,-500.0,0.00019178,2]
[351036223,1738303845897,-1070.24618995,0.00019178,2]
[351036238,1738303846582,-726.47381005,0.00019178,2]
[351036239,1738303846591,-1312.69,0.00019178,2]
[351036240,1738303846602,-2178.28113315,0.00019178,2]
[351036242,1738304065381,240.79341803,0.000216,120]
[351036243,1738304679974,150.0,0.00013121,10]
[351036244,1738304708502,29688.44,0.00012,2]
[351036245,1738304708536,713420.35787949,0.00012,2]
[351036246,1738304710810,178.0,0.000155,30]
[351036248,1738304801106,-500.0,0.00011999,2]
[351036249,1738304801129,-22.39393106,0.00011999,2]
[351036251,1738304814711,152.38,0.00010137,2]
[351036253,1738304879913,24847.62,0.0001,2]
[351036254,1738304879938,44500.0,0.0001,2]
[351036255,1738304879963,155.37,0.0001,2]
[351036263,1738304951086,-300.0,9.999e-05,2]
[351036264,1738304951109,-1139.411848,0.0001,2]
[351036277,1738305032107,-2400.0,0.0001,2]
[351036278,1738305032119,-1060.89056732,0.0001,2]
[351036279,1738305032195,-600.77999861,0.0001,2]
[351036280,1738305032207,-2813.51741713,0.0001,2]
[351036281,1738305032218,-422.217238,0.0001,2]
[351036282,1738305032490,-1738.25685236,0.0001,2]
[351036791,1738305038022,-29397.53462716,0.0001,2]
[351036793,1738305038033,-2171.88227015,0.0001,2]
[351036795,1738305038045,-2907.58606456,0.0001,2]
[351036802,1738305038106,-11167.4409362,0.0001,2]
[351036812,1738305038190,-329870.40441771,0.0001,2]
[351036814,1738305038199,-6155.53103419,0.000115,2]
[351036816,1738305038208,-500.0,0.000116,4]
[351036818,1738305038218,-150.0,0.0001165,2]
[351036820,1738305038227,-688.77834842,0.0001165,2]
[351036822,1738305038236,-1100.0,0.000117,4]
[351036824,1738305038246,-1700.0,0.000118,4]
[351036826,1738305038255,-2300.0,0.000119,4]
[351036828,1738305038264,-245.57310875,0.000119,2]
[351036830,1738305038273,-500.0,0.00011973,2]
[351036832,1738305038283,-240.97676223,0.0001199,2]
[351036834,1738305038292,-240.97676223,0.0001199,2]
[351036836,1738305038302,-477.60606894,0.00011999,2]
[351036838,1738305038311,-500.0,0.00011999,2]
[351036840,1738305038321,-500.0,0.00011999,2]
[351036842,1738305038330,-500.0,0.00011999,2]
[351036844,1738305038340,-500.0,0.00011999,2]
[351036846,1738305038349,-500.0,0.00011999,2]
[351036848,1738305038358,-500.0,0.00011999,2]
[351036850,1738305038367,-500.0,0.00011999,2]
[351036852,1738305038376,-500.0,0.00011999,2]
[351036854,1738305038385,-500.0,0.00011999,2]
[351036856,1738305038394,-500.0,0.00011999,2]
[351036858,1738305038403,-500.0,0.00011999,2]
[351036860,1738305038412,-500.0,0.00011999,2]
[351036861,1738305038421,-500.0,0.00011999,2]
[351036863,1738305038431,-500.0,0.00011999,2]
[351036865,1738305038441,-500.0,0.00011999,2]
[351036867,1738305038450,-500.0,0.00011999,2]
[351036869,1738305038459,-500.0,0.00011999,2]
[351036871,1738305038468,-500.0,0.00011999,2]
[351036873,1738305038477,-500.0,0.00011999,2]
[351036875,1738305038487,-500.0,0.00011999,2]
[351036877,1738305038496,-500.0,0.00011999,2]
[351036879,1738305038505,-561.79408263,0.00011999,2]
[351036881,1738305038514,-500.0,0.00011999,2]
[351036883,1738305038524,-500.0,0.00011999,2]
[351036885,1738305038533,-500.0,0.00011999,2]
[351036887,1738305038543,-500.0,0.00011999,2]
[351036889,1738305038552,-500.0,0.00011999,2]
[351036891,1738305038561,-500.0,0.00011999,2]
[351036893,1738305038570,-500.0,0.00011999,2]
[351036895,1738305038579,-500.0,0.00011999,2]
[351036897,1738305038588,-500.0,0.00011999,2]
[351036899,1738305038597,-500.0,0.00011999,2]
[351036901,1738305038606,-500.0,0.00011999,2]
[351036903,1738305038620,-500.0,0.00011999,2]
[351036905,1738305038630,-500.0,0.00011999,2]
[351036907,1738305038639,-500.0,0.00011999,2]
[351036909,1738305038648,-500.0,0.00011999,2]
[351036910,1738305038658,-500.0,0.00011999,2]
[351036912,1738305038667,-500.0,0.00011999,2]
[351036914,1738305038677,-500.0,0.00011999,2]
[351036916,1738305038686,-500.0,0.00011999,2]
[351036918,1738305038697,-550.0,0.00011999,2]
[351036921,1738305038707,-500.0,0.00011999,2]
[351036923,1738305038716,-500.0,0.00011999,2]
[351036924,1738305038726,-500.0,0.00011999,2]
[351036926,1738305038736,-500.0,0.00011999,2]
[351036928,1738305038745,-500.0,0.00011999,2]
[351036956,1738305038992,-500.0,0.00011999,2]
[351036958,1738305039002,-500.0,0.00011999,2]
[351036960,1738305039011,-500.0,0.00011999,2]
[351036962,1738305039021,-500.0,0.00011999,2]
[351036964,1738305039030,-500.0,0.00011999,2]
[351036966,1738305039040,-500.0,0.00011999,2]
[351036968,1738305039049,-500.0,0.00011999,2]
[351036970,1738305039058,-450.63489679,0.00011999,2]
[351036972,1738305039068,-1903858.88598964,0.00011999,2]
[351036974,1738305039077,-1741549.5088732,0.00012,2]
[351036976,1738305039086,-2978.73753522,0.00012105,2]
[351036978,1738305039095,-157.6326575,0.00012421,2]
[351036980,1738305039104,-202.56043897,0.00012521,2]
[351036982,1738305039113,-150.0,0.0001276,2]
[351036984,1738305039122,-1386.35,0.00013149,2]
[351036986,1738305039131,-150.0,0.000132,2]
[351036988,1738305039140,-245.57310874,0.00013273,2]
[351036990,1738305039149,-181.9,0.00013699,2]
[351036992,1738305039158,-167.01,0.00014498,2]
[351036993,1738305039167,-245.57310874,0.00014647,2]
[351036995,1738305039177,-14905.5500265,0.00015,2]
[351036997,1738305039186,-606.3956805,0.00015296,2]
[351036999,1738305039195,-669.47883399,0.00015396,2]
[351037001,1738305039205,-269.0,0.00016,2]
[351037003,1738305039214,-245.57310874,0.0001602,2]
[351037005,1738305039224,-385.59,0.00016349,2]
[351037007,1738305039233,-5558.0,0.000164,3]
[351037009,1738305039242,-5558.0,0.000167,5]
[351037011,1738305039251,-938.23759663,0.000168,2]
[351037013,1738305039260,-5754.79,0.000168,2]
[351037015,1738305039269,-160.9,0.00016881,2]
[351037017,1738305039278,-167.01,0.00016915,2]
[351037019,1738305039288,-152.38,0.00017184,2]
[351037021,1738305039297,-245.57310874,0.00017393,2]
[351037023,1738305039307,-568.51821113,0.00017564,2]
[351037025,1738305039316,-500.0,0.00017564,2]
[351037027,1738305039326,-503.0,0.00017671,2]
[351037029,1738305039335,-606.3956805,0.00018009,2]
[351037031,1738305039344,-162.57,0.00018051,2]
[351037033,1738305039353,-774.06,0.00018141,2]
[351037035,1738305039362,-439.05,0.00018141,2]
[351037037,1738305039372,-151.05,0.00018218,30]
[351037039,1738305039381,-1000.0,0.00018244,2]
[351037040,1738305039390,-8438.2,0.00018276,2]
[351037043,1738305039399,-1386.35,0.00018409,2]
[351037044,1738305039409,-153.60173477,0.00018438,2]
[351037046,1738305039418,-431.05149091,0.00018539,2]
[351037048,1738305039427,-153.60173477,0.00018603,2]
[351037050,1738305039437,-385.59,0.00018613,2]
[351037052,1738305039446,-9787.85144395,0.0001868,2]
[351037054,1738305039455,-245.57310874,0.00018767,2]
[351037056,1738305039464,-153.60173477,0.00018767,2]
[351037058,1738305039474,-431.05149091,0.0001878,2]
[351037060,1738305039482,-158.400441,0.000188,2]
[351037062,1738305039492,-159.29712809,0.000189,2]
[351037064,1738305039501,-159.29712803,0.000189,2]
[351037066,1738305039511,-159.29712803,0.000189,2]
[351037068,1738305039519,-159.29712803,0.000189,2]
[351037070,1738305039528,-159.29712803,0.000189,2]
[351037072,1738305039538,-159.29712803,0.000189,2]
[351037074,1738305039547,-159.29712803,0.000189,2]
[351037076,1738305039556,-2900.0,0.000189,6]
[351037078,1738305039566,-158.36522813,0.000189,2]
[351037080,1738305039575,-158.36522806,0.000189,2]
[351037082,1738305039584,-158.36522806,0.000189,2]
[351037084,1738305039593,-158.36522806,0.000189,2]
[351037086,1738305039603,-158.36522806,0.000189,2]
[351037088,1738305039614,-158.36522806,0.000189,2]
[351037089,1738305039623,-158.36522806,0.000189,2]
[351037091,1738305039632,-158.36522806,0.000189,2]
[351037093,1738305039641,-158.36522806,0.000189,2]
[351037095,1738305039651,-158.36522806,0.000189,2]
[351037097,1738305039661,-153.60173477,0.00018932,2]
[351037099,1738305039671,-1872.54471819,0.00018968,2]
[351037101,1738305039680,-7266.06423845,0.00018968,2]
[351037103,1738305039689,-431.05149091,0.00018971,2]
[351037105,1738305039699,-285.06887405,0.00018977,2]
[351037107,1738305039709,-304.94010569,0.00018977,2]
[351037109,1738305039718,-201.56961273,0.00018977,3]
[351037111,1738305039727,-1352.82772,0.0001899,2]
[351037113,1738305039736,-158.36522806,0.00019068,2]
[351037115,1738305039745,-66208.6913,0.00019077,2]
[351037117,1738305039755,-991.2566,0.00019077,2]
[351037119,1738305039764,-151.0,0.00019077,2]
[351037121,1738305039774,-151.0,0.00019077,2]
[351037123,1738305039784,-151.0,0.00019077,2]
[351037125,1738305039794,-151.0,0.00019077,2]
[351037127,1738305039803,-151.0,0.00019077,2]
[351037129,1738305039812,-154.265822,0.00019077,2]
[351037131,1738305039822,-151.0,0.00019077,2]
[351037133,1738305039831,-151.590984,0.00019077,2]
[351037135,1738305039840,-151.0,0.00019077,2]
[351037137,1738305039850,-1656.4476,0.00019077,2]
[351037139,1738305039859,-515.5583,0.00019077,2]
[351037141,1738305039869,-5000.0,0.00019077,2]
[351037143,1738305039878,-2989.95490033,0.0001908,3]
[351037145,1738305039888,-200.0,0.00019089,3]
[351037147,1738305039898,-1863.351,0.00019092,2]
[351037149,1738305039908,-323.687,0.00019092,2]
[351037150,1738305039917,-2021.0,0.00019092,2]
[351037153,1738305039927,-3908.0,0.00019092,2]
[351037155,1738305039936,-1271.0,0.00019092,2]
[351037156,1738305039946,-150.0,0.00019092,2]
[351037158,1738305039955,-153.60173477,0.00019096,2]
[351037161,1738305039965,-5754.79,0.000191,2]
[351037163,1738305039974,-4473.99142106,0.00019101,3]
[351037165,1738305039985,-2989.95490033,0.00019104,3]
[351037167,1738305039995,-250.5552527,0.00019107,3]
[351037170,1738305040005,-195149.06499539,0.00019108,3]
[351037172,1738305040014,-2989.95490033,0.00019113,3]
[351037174,1738305040023,-151.0,0.00019115,2]
[351037175,1738305040032,-277.251744,0.00019115,2]
[351037177,1738305040041,-151.0,0.00019115,2]
[351037178,1738305040050,-277.251744,0.00019115,2]
[351037179,1738305040059,-153.566122,0.00019115,2]
[351037180,1738305040068,-200.0,0.00019125,3]
[351037181,1738305040078,-195149.06499539,0.00019129,3]
[351037182,1738305040087,-250.5552527,0.00019142,3]
[351037183,1738305040096,-4473.99142106,0.00019153,3]
[351037184,1738305040105,-4473.99142106,0.00019155,3]
[351037185,1738305040114,-2989.95490033,0.00019157,3]
[351037186,1738305040123,-200.0,0.00019166,3]
[351037188,1738305040132,-718.387,0.00019169,2]
[351037190,1738305040141,-159.29712803,0.00019169,2]
[351037192,1738305040150,-250.5552527,0.00019171,3]
[351037193,1738305040159,-300.0,0.00019177,2]
[351037194,1738305040169,-300.0,0.00019177,2]
[351037196,1738305040178,-357.85616503,0.00019177,2]
[351037198,1738305040187,-152.930386,0.00019178,2]
[351037200,1738305040196,-153.239463,0.00019178,2]
[351037202,1738305040205,-150.823476,0.00019178,2]
[351037204,1738305040214,-500.0,0.00019178,2]
[351037206,1738305040223,-635.47328765,0.00019178,2]
[351037208,1738305040233,-500.0,0.00019178,2]
[351037210,1738305040242,-500.0,0.00019178,2]
[351037212,1738305040253,-500.0,0.00019178,2]
[351037214,1738305040262,-500.0,0.00019178,2]
[351037215,1738305040271,-500.0,0.00019178,2]
[351037217,1738305040280,-592.6,0.00019178,2]
[351037219,1738305040289,-500.0,0.00019178,2]
[351037221,1738305040298,-500.0,0.00019178,2]
[351037223,1738305040307,-551.10265873,0.00019178,2]
[351037225,1738305040316,-500.0,0.00019178,2]
[351037227,1738305040326,-500.0,0.00019178,2]
[351037229,1738305040335,-500.0,0.00019178,2]
[351037231,1738305040344,-500.0,0.00019178,2]
[351037233,1738305040354,-500.0,0.00019178,2]
[351037235,1738305040363,-372.66297487,0.00019178,2]
[351037237,1738305040372,-940.25,0.00019178,2]
[351037239,1738305040381,-500.0,0.00019178,2]
[351037241,1738305040390,-548.89,0.00019178,2]
[351037243,1738305040399,-500.0,0.00019178,2]
[351037245,1738305040408,-500.0,0.00019178,2]
[351037247,1738305040418,-611.59,0.00019178,2]
[351037248,1738305040427,-500.0,0.00019178,2]
[351037250,1738305040435,-500.0,0.00019178,2]
[351037252,1738305040444,-510.11,0.00019178,2]
[351037254,1738305040453,-500.0,0.00019178,2]
[351037256,1738305040462,-500.0,0.00019178,2]
[351037258,1738305040471,-500.0,0.00019178,2]
[351037260,1738305040480,-500.0,0.00019178,2]
[351037262,1738305040489,-500.0,0.00019178,2]
[351037264,1738305040498,-500.0,0.00019178,2]
[351037266,1738305040507,-500.0,0.00019178,2]
[351037268,1738305040516,-500.0,0.00019178,2]
[351037270,1738305040525,-500.0,0.00019178,2]
[351037272,1738305040534,-634.09590194,0.00019178,2]
[351037274,1738305040544,-500.0,0.00019178,2]
[351037276,1738305040553,-500.0,0.00019178,2]
[351037278,1738305040562,-500.0,0.00019178,2]
[351037279,1738305040571,-500.0,0.00019178,2]
[351037281,1738305040580,-500.0,0.00019178,2]
[351037284,1738305040594,-510.32993875,0.00019178,2]
[351037286,1738305040604,-500.0,0.00019178,2]
[351037288,1738305040619,-500.0,0.00019178,2]
[351037290,1738305040628,-500.0,0.00019178,2]
[351037292,1738305040637,-500.0,0.00019178,2]
[351037294,1738305040647,-500.0,0.00019178,2]
[351037296,1738305040657,-315.27088042,0.00019178,2]
[351037298,1738305040667,-500.0,0.00019178,2]
[351037300,1738305040676,-1800.0,0.00019178,2]
[351037302,1738305040686,-500.0,0.00019178,2]
[351037304,1738305040697,-597.83,0.00019178,2]
[351037306,1738305040707,-593.66262669,0.00019178,2]
[351037308,1738305040716,-500.0,0.00019178,2]
[351037310,1738305040725,-500.0,0.00019178,2]
[351037312,1738305040735,-504.69798438,0.00019178,2]
[351037314,1738305040745,-390.87450962,0.00019178,2]
[351037316,1738305040754,-500.0,0.00019178,2]
[351037318,1738305040763,-508.69325602,0.00019178,2]
[351037320,1738305040773,-500.0,0.00019178,2]
[351037322,1738305040783,-500.0,0.00019178,2]
[351037324,1738305040793,-500.0,0.00019178,2]
[351037326,1738305040802,-343.12974026,0.00019178,2]
[351037328,1738305040811,-500.0,0.00019178,2]
[351037330,1738305040820,-504.50839679,0.00019178,2]
[351037332,1738305040830,-500.0,0.00019178,2]
[351037334,1738305040839,-506.88589932,0.00019178,2]
[351037336,1738305040848,-500.0,0.00019178,2]
[351037338,1738305040857,-500.0,0.00019178,2]
[351037340,1738305040866,-500.0,0.00019178,2]
[351037342,1738305040876,-500.0,0.00019178,2]
[351037344,1738305040885,-500.0,0.00019178,2]
[351037346,1738305040894,-500.0,0.00019178,2]
[351037348,1738305040904,-500.0,0.00019178,2]
[351037350,1738305040913,-500.0,0.00019178,2]
[351037352,1738305040922,-500.0,0.00019178,2]
[351037354,1738305040931,-500.0,0.00019178,2]
[351037356,1738305040940,-150.823464,0.00019178,2]
[351037358,1738305040950,-892.45,0.00019178,2]
[351037359,1738305040960,-500.0,0.00019178,2]
[351037361,1738305040970,-500.0,0.00019178,2]
[351037363,1738305040980,-512.56108744,0.00019178,2]
[351037365,1738305040990,-500.0,0.00019178,2]
[351037367,1738305041000,-504.58234165,0.00019178,2]
[351037369,1738305041010,-500.0,0.00019178,2]
[351037371,1738305041019,-438.81241258,0.00019178,2]
[351037373,1738305041028,-500.0,0.00019178,2]
[351037375,1738305041037,-592.25131872,0.00019178,2]
[351037377,1738305041047,-500.0,0.00019178,2]
[351037379,1738305041055,-500.0,0.00019178,2]
[351037381,1738305041065,-621.91,0.00019178,2]
[351037383,1738305041074,-500.0,0.00019178,2]
[351037385,1738305041083,-525.47453325,0.00019178,2]
[351037387,1738305041092,-500.0,0.00019178,2]
[351037389,1738305041102,-500.0,0.00019178,2]
[351037391,1738305041111,-500.0,0.00019178,2]
[351037393,1738305041120,-500.0,0.00019178,2]
[351037395,1738305041130,-945.02,0.00019178,2]
[351037397,1738305041140,-500.0,0.00019178,2]
[351037399,1738305041149,-839.16,0.00019178,2]
[351037401,1738305041159,-644.88,0.00019178,2]
[351037403,1738305041169,-643.82,0.00019178,2]
[351037405,1738305041178,-500.0,0.00019178,2]
[351037407,1738305041188,-500.0,0.00019178,2]
[351037409,1738305041197,-534.48,0.00019178,2]
[351037411,1738305041207,-500.0,0.00019178,2]
[351037413,1738305041217,-500.0,0.00019178,2]
[351037415,1738305041226,-500.0,0.00019178,2]
[351037417,1738305041235,-500.0,0.00019178,2]
[351037419,1738305041245,-624.54,0.00019178,2]
[351037421,1738305041254,-500.0,0.00019178,2]
[351037423,1738305041263,-500.0,0.00019178,2]
[351037425,1738305041273,-500.0,0.00019178,2]
[351037427,1738305041283,-500.0,0.00019178,2]
[351037429,1738305041292,-500.0,0.00019178,2]
[351037431,1738305041301,-500.0,0.00019178,2]
[351037433,1738305041311,-500.0,0.00019178,2]
[351037435,1738305041320,-748.93,0.00019178,2]
[351037437,1738305041330,-500.0,0.00019178,2]
[351037439,1738305041339,-629.81,0.00019178,2]
[351037441,1738305041350,-527.96,0.00019178,2]
[351037443,1738305041359,-500.0,0.00019178,2]
[351037445,1738305041368,-500.0,0.00019178,2]
[351037447,1738305041378,-500.0,0.00019178,2]
[351037449,1738305041387,-1029.5,0.00019178,2]
[351037451,1738305041396,-500.0,0.00019178,2]
[351037453,1738305041406,-510.4,0.00019178,2]
[351037455,1738305041415,-1069.89,0.00019178,2]
[351037457,1738305041424,-500.0,0.00019178,2]
[351037459,1738305041433,-500.0,0.00019178,2]
[351037461,1738305041443,-500.0,0.00019178,2]
[351037463,1738305041452,-1261.9,0.00019178,2]
[351037465,1738305041462,-534.18,0.00019178,2]
[351037467,1738305041471,-500.0,0.00019178,2]
[351037469,1738305041481,-500.0,0.00019178,2]
[351037471,1738305041491,-509.27,0.00019178,2]
[351037473,1738305041500,-430.21378877,0.00019178,2]
[351037475,1738305041509,-999.51,0.00019178,2]
[351037477,1738305041518,-1002.1,0.00019178,2]
[351037479,1738305041527,-787.81,0.00019178,2]
[351037481,1738305041537,-517.58111509,0.00019178,2]
[351037483,1738305041548,-500.0,0.00019178,2]
[351037485,1738305041558,-500.0,0.00019178,2]
[351037487,1738305041567,-564.05,0.00019178,2]
[351037489,1738305041577,-657.22,0.00019178,2]
[351037491,1738305041586,-500.0,0.00019178,2]
[351037492,1738305041596,-1484.08,0.00019178,2]
[351037494,1738305041606,-657.63,0.00019178,2]
[351037496,1738305041620,-698.29,0.00019178,2]
[351037498,1738305041629,-637.86,0.00019178,2]
[351037500,1738305041638,-500.0,0.00019178,2]
[351037502,1738305041649,-500.0,0.00019178,2]
[351037504,1738305041658,-813.38,0.00019178,2]
[351037506,1738305041668,-500.0,0.00019178,2]
[351037508,1738305041678,-500.0,0.00019178,2]
[351037510,1738305041688,-500.0,0.00019178,2]
[351037512,1738305041698,-500.0,0.00019178,2]
[351037514,1738305041707,-669.6,0.00019178,2]
[351037516,1738305041716,-500.0,0.00019178,2]
[351037518,1738305041726,-577.58,0.00019178,2]
[351037520,1738305041735,-636.74,0.00019178,2]
[351037522,1738305041745,-621.08,0.00019178,2]
[351037524,1738305041755,-619.94,0.00019178,2]
[351037526,1738305041765,-500.0,0.00019178,2]
[351037528,1738305041774,-500.0,0.00019178,2]
[351037530,1738305041784,-1585.17,0.00019178,2]
[351037532,1738305041795,-500.0,0.00019178,2]
[351037534,1738305041805,-1674.68,0.00019178,2]
[351037536,1738305041815,-514.86,0.00019178,2]
[351037538,1738305041825,-500.0,0.00019178,2]
[351037540,1738305041834,-592.24,0.00019178,2]
[351037542,1738305041844,-587.16,0.00019178,2]
[351037544,1738305041853,-589.61,0.00019178,2]
[351037546,1738305041863,-1014.15,0.00019178,2]
[351037548,1738305041873,-500.0,0.00019178,2]
[351037550,1738305041883,-508.89,0.00019178,2]
[351037552,1738305041892,-594.29,0.00019178,2]
[351037554,1738305041902,-500.0,0.00019178,2]
[351037556,1738305041912,-596.58,0.00019178,2]
[351037558,1738305041921,-500.0,0.00019178,2]
[351037560,1738305041931,-500.0,0.00019178,2]
[351037562,1738305041940,-571.22,0.00019178,2]
[351037564,1738305041949,-500.0,0.00019178,2]
[351037566,1738305041958,-579.26,0.00019178,2]
[351037568,1738305041968,-500.0,0.00019178,2]
[351037570,1738305041977,-885.01,0.00019178,2]
[351037572,1738305041986,-623.55,0.00019178,2]
[351037574,1738305041996,-500.0,0.00019178,2]
[351037576,1738305042005,-1002.67,0.00019178,2]
[351037578,1738305042015,-533.1814503,0.00019178,2]
[351037580,1738305042024,-500.0,0.00019178,2]
[351037582,1738305042033,-500.0,0.00019178,2]
[351037584,1738305042044,-266.43243527,0.00019178,2]
[351037586,1738305042053,-1096.16,0.00019178,2]
[351037588,1738305042063,-500.0,0.00019178,2]
[351037590,1738305042072,-339.45701812,0.00019178,2]
[351037592,1738305042081,-741.76,0.00019178,2]
[351037594,1738305042090,-786.28,0.00019178,2]
[351037596,1738305042100,-500.0,0.00019178,2]
[351037598,1738305042109,-500.0,0.00019178,2]
[351037600,1738305042118,-645.76,0.00019178,2]
[351037602,1738305042127,-500.0,0.00019178,2]
[351037604,1738305042137,-500.0,0.00019178,2]
[351037606,1738305042146,-510.85,0.00019178,2]
[351037608,1738305042155,-500.0,0.00019178,2]
[351037610,1738305042165,-994.37,0.00019178,2]
[351037612,1738305042174,-500.0,0.00019178,2]
[351037614,1738305042183,-500.0,0.00019178,2]
[351037616,1738305042192,-706.6,0.00019178,2]
[351037618,1738305042202,-612.52,0.00019178,2]
[351037620,1738305042212,-500.0,0.00019178,2]
[351037622,1738305042221,-500.0,0.00019178,2]
[351037624,1738305042232,-1207.91,0.00019178,2]
[351037626,1738305042242,-791.36,0.00019178,2]
[351037628,1738305042251,-1013.39,0.00019178,2]
[351037630,1738305042260,-904.4,0.00019178,2]
[351037632,1738305042269,-500.0,0.00019178,2]
[351037634,1738305042279,-500.0,0.00019178,2]
[351037636,1738305042288,-500.0,0.00019178,2]
[351037638,1738305042300,-500.0,0.00019178,2]
[351037640,1738305042310,-500.0,0.00019178,2]
[351037642,1738305042319,-517.64,0.00019178,2]
[351037644,1738305042328,-611.17,0.00019178,2]
[351037646,1738305042337,-1289.82,0.00019178,2]
[351037648,1738305042346,-500.0,0.00019178,2]
[351037650,1738305042355,-948.72,0.00019178,2]
[351037652,1738305042365,-500.0,0.00019178,2]
[351037654,1738305042374,-500.0,0.00019178,2]
[351037656,1738305042383,-500.0,0.00019178,2]
[351037658,1738305042392,-634.51,0.00019178,2]
[351037660,1738305042402,-500.0,0.00019178,2]
[351037662,1738305042411,-187.81665664,0.00019178,2]
[351037664,1738305042420,-1063.96,0.00019178,2]
[351037666,1738305042429,-565.48,0.00019178,2]
[351037668,1738305042439,-731.2,0.00019178,2]
[351037670,1738305042448,-500.0,0.00019178,2]
[351037672,1738305042458,-500.0,0.00019178,2]
[351037674,1738305042467,-500.0,0.00019178,2]
[351037676,1738305042476,-500.0,0.00019178,2]
[351037677,1738305042485,-500.0,0.00019178,2]
[351037678,1738305042494,-625.92,0.00019178,2]
[351037679,1738305042503,-500.0,0.00019178,2]
[351037680,1738305042512,-888.22,0.00019178,2]
[351037681,1738305042521,-500.0,0.00019178,2]
[351037682,1738305042530,-500.0,0.00019178,2]
[351037683,1738305042539,-500.0,0.00019178,2]
[351037684,1738305042549,-500.0,0.00019178,2]
[351037685,1738305042558,-747.79,0.00019178,2]
[351037686,1738305042567,-500.0,0.00019178,2]
[351037687,1738305042576,-753.31,0.00019178,2]
[351037689,1738305042586,-500.0,0.00019178,2]
[351037691,1738305042595,-813.15,0.00019178,2]
[351037693,1738305042604,-500.0,0.00019178,2]
[351037695,1738305042617,-587.71,0.00019178,2]
[351037697,1738305042627,-526.0,0.00019178,2]
[351037699,1738305042635,-500.0,0.00019178,2]
[351037701,1738305042645,-500.0,0.00019178,2]
[351037703,1738305042655,-500.0,0.00019178,2]
[351037705,1738305042664,-500.0,0.00019178,2]
[351037707,1738305042674,-1170.95,0.00019178,2]
[351037709,1738305042684,-680.12,0.00019178,2]
[351037711,1738305042694,-713.89,0.00019178,2]
[351037713,1738305042703,-1073.91,0.00019178,2]
[351037715,1738305042712,-703.88,0.00019178,2]
[351037717,1738305042722,-676.92,0.00019178,2]
[351037719,1738305042732,-500.0,0.00019178,2]
[351037721,1738305042741,-1486.98,0.00019178,2]
[351037723,1738305042751,-1628.4,0.00019178,2]
[351037725,1738305042760,-887.83,0.00019178,2]
[351037727,1738305042769,-605.81,0.00019178,2]
[351037729,1738305042778,-750.42,0.00019178,2]
[351037731,1738305042787,-500.0,0.00019178,2]
[351037733,1738305042798,-500.0,0.00019178,2]